Cogmind - Beta 12 @@@ ROGUE MODE // 2023.06.19 @ 17:24:27 Player: skigear Result: Destroyed by exploding Fusion Modulator Performance ------------- Evolutions (0) 0 Regions Visited (1) 200 Robots Destroyed (17) 85 Value Destroyed (601) 601 Prototype IDs (3) 60 Alien Tech Used (0) 0 Bonus (0) 0 TOTAL SCORE: 946 Bonus ------- None Cogmind --------- Core Integrity 0/250 Matter 158/300 Energy 100/100 System Corruption 0% Temperature Cool (12) Movement Rolling (140) Ox4 Location -10/Materials Parts ------- > --- POWER (1) -------- (None) > --- PROPULSION (2) --- Light Treads Wheel > --- UTILITY (2) ------ High-capacity Storage Unit > --- WEAPON (2) ------- Grenade Launcher > --- INVENTORY (20) --- Ion Engine Ion Engine Light Treads Huge Storage Unit High-capacity Matter Pod (118) Peak State ------------ > --- POWER ------------ Ion Engine > --- PROPULSION ------- Light Treads Compact Wheel > --- UTILITY ---------- Small Storage Unit High-capacity Storage Unit > --- WEAPON ----------- Assault Rifle Light Assault Rifle > --- INVENTORY -------- Light Ion Engine Light Treads Wheel [Rating: 7] Favorites ----------- Power Ion Engine Engine Ion Engine Propulsion Light Treads Treads Light Treads Wheel Compact Wheel Utility High-capacity Storage Unit Storage High-capacity Storage Unit Weapon Assault Rifle Ballistic Gun Assault Rifle Launcher Grenade Launcher Build | -11 -10 ------- Run | Jun Mat Slots Evolved . | . . Power . | . . Propulsion . | . . Utility . | . . Weapon . | . . Parts Attached 20 | 9 11 Power 3 | 2 1 Engine 3 | 2 1 Core . | . . Reactor . | . . Propulsion 6 | 4 2 Treads 2 | 1 1 Leg . | . . Wheel 4 | 3 1 Hover . | . . Flight . | . . Utility 4 | 1 3 Device . | . . Storage 4 | 1 3 Processor . | . . Hackware . | . . Protection . | . . Artifact . | . . Weapon 7 | 2 5 Energy Gun . | . . Energy Cannon . | . . Ballistic Gun 4 | 2 2 Ballistic Cannon . | . . Launcher 3 | . 3 Special Weapon . | . . Impact Weapon . | . . Slashing Weapon . | . . Piercing Weapon . | . . Special Melee Weapon . | . . Unidentified Prototypes . | . . Parts Lost 6 | . 6 Power 2 | . 2 Propulsion 2 | . 2 Utility . | . . Weapon 2 | . 2 Highest Loss Streak 5 | . 5 To Critical Strikes . | . . Average Slot Usage (%) 83 | . 83 Engine 13 | . 13 Treads 13 | . 13 Wheel 13 | . 13 Storage 14 | . 14 Ballistic Gun 26 | . 26 Naked Turns . | . . Heaviest Build 48 | 13 48 Greatest Support 16 | 16 16 Greatest Overweight (x) 4 | 1 4 Average Overweight (x) 1 | . 1 Largest Inventory Capacity 25 | 8 25 Average Capacity 18 | 6 19 Most Carried 8 | 5 8 Average Carried 5 | 3 5 Final Capacity 20 | 8 20 Final Carried 5 | 3 5 Class Distribution -------------------- 100% | Mutant Dominant Class ---------------- Mutant | -10/Materials Resources | -11 -10 ----------- Run | Jun Mat Matter Collected 587 | 163 424 Remotely . | . . Salvage Created 585 | . 585 Parts 37 | . 37 Haulers Intercepted . | . . Recyclers Shooed . | . . Parts Field Recycled . | . . Retrieved Matter . | . . Parts Self-Destructed . | . . Prevented . | . . Kills | -11 -10 ------- Run | Jun Mat Combat Hostiles Destroyed 15 | . 15 Guns 12 | . 12 AOE 3 | . 3 Classes Destroyed 3 | . 3 Operator 1 | . 1 Watcher 1 | . 1 Grunt 15 | . 15 Best Kill Streak 5 | . 5 Combat Bots Only 5 | . 5 Max Kills in Single Turn 1 | . 1 Gunslinging . | . . Exploded 1 | . 1 Melee . | . . Uniques/NPCs Destroyed . | . . Combat | -11 -10 -------- Run | Jun Mat Damage Taken 958 | . 958 Core 282 | . 282 Absorbed by Shields . | . . Core Remaining (%) 100 | 100 . Volleys Fired 53 | . 53 Largest 2 | . 2 Hottest 50 | . 50 Shots Fired 96 | . 96 Gun 89 | . 89 Cannon . | . . Launcher 7 | . 7 Special . | . . Kinetic 89 | . 89 Thermal . | . . Explosive 7 | . 7 Electromagnetic . | . . Robot Hit Streak 14 | . 14 Robot Miss Streak 2 | . 2 Penetration Max . | . . Secondary Targets . | . . Shots Hit Robots 64 | . 64 Core Hits 38 | . 38 Critical Kills . | . . Critical Parts Destroyed . | . . Critical Strikes . | . . Melee Attacks . | . . Impact . | . . Slashing . | . . Piercing . | . . Sneak Attacks . | . . Combat Hostiles . | . . Follow-up Attacks . | . . Damage Inflicted 1066 | . 1066 Guns 664 | . 664 Cannons . | . . Explosions 402 | . 402 Melee . | . . Ramming . | . . Kinetic 664 | . 664 Thermal . | . . Explosive 402 | . 402 Electromagnetic . | . . Impact . | . . Slashing . | . . Piercing . | . . Highest Corruption . | . . Average Corruption . | . . Corruption Purged . | . . Corruption Blocked . | . . Overload Shots . | . . Overflow Damage . | . . Projectiles . | . . Explosions . | . . Melee . | . . Knockbacks . | . . Impact . | . . Kinetic . | . . Secondary . | . . Self-Inflicted Damage 57 | . 57 Shots 3 | . 3 Rammed . | . . Targets Rammed . | . . Kicked . | . . Crushed . | . . Highest Temperature 25 | . 25 Average Temperature 8 | . 8 Received Heat Transfer 480 | . 480 Siege Activations . | . . Robots Corrupted . | . . Combat Hostiles . | . . Parts Fried . | . . Impact Corruptions . | . . Robots Melted . | . . Combat Hostiles . | . . Parts Melted . | . . Heat Transferred . | . . Parts Sabotaged . | . . Parts Stolen . | . . Parts Stripped . | . . Power Chain Reactions . | . . Missiles Intercepted . | . . Alert | -11 -10 ------- Run | Jun Mat Peak Influence 340 | . 340 Initial . | . . Average 100 | . 109 Maximum Alert Level 1 | . 1 Low Security (%) 76 | 100 74 Level 1 23 | . 25 Level 2 . | . . Level 3 . | . . Level 4 . | . . Level 5 . | . . High Security . | . . Max Security . | . . Squads Dispatched 3 | . 3 Investigation 1 | . 1 Extermination . | . . Reinforcement 2 | . 2 Assault . | . . Garrison . | . . Intercept . | . . Searches Triggered . | . . Construction Impeded . | . . Haulers Reinforced . | . . Active Scanning Responses . | . . Cargo Convoy Interrupts . | . . Stealth | -11 -10 --------- Run | Jun Mat Distress Signals 1 | . 1 Communications Jammed . | . . Distress Signals . | . . Times Spotted 23 | . 23 Peak Tracking Total 6 | . 6 Tactical Retreats 1 | . 1 Traps | -11 -10 ------- Run | Jun Mat Traps Triggered . | . . Indirectly . | . . Trap Hack Attempts . | . . Triggered . | . . Disarmed . | . . Reprogrammed . | . . Reused . | . . Traps Extracted . | . . Installed . | . . Triggered . | . . Machines | -11 -10 ---------- Run | Jun Mat Machines Disabled 2 | . 2 Max in Single Turn 1 | . 1 Machines Repaired . | . . Machines Sabotaged . | . . Overloaded Fab Kills . | . . Hacking | -11 -10 --------- Run | Jun Mat Machines Accessed 6 | . 6 Terminals 4 | . 4 Fabricators . | . . Repair Stations . | . . Recycling Units 2 | . 2 Scanalyzers . | . . Garrison Access . | . . Total Hacks 20 | . 20 Successful 8 | . 8 Failed 12 | . 12 Catastrophic 4 | . 4 Database Lockouts . | . . Manual 11 | . 11 Terminals 13 | . 13 Fabricators . | . . Repair Stations . | . . Recycling Units 7 | . 7 Scanalyzers . | . . Garrison Access . | . . Terminal Hacks 5 | . 5 Part Schematic 1 | . 1 Prototype ID Bank 1 | . 1 Branch Access Points 1 | . 1 Terminal Index 1 | . 1 Locate Traps 1 | . 1 Fabricator Hacks . | . . Repair Station Hacks . | . . Recycling Unit Hacks 1 | . 1 Retrieve Components 1 | . 1 Scanalyzer . | . . Garrison Access Hacks . | . . Unauthorized Hacks 2 | . 2 Terminals . | . . Fabricators . | . . Repair Stations . | . . Recycling Units 2 | . 2 Reject 2 | . 2 Scanalyzers . | . . Garrison Access . | . . Data Cores Recovered . | . . Used . | . . Hacking Detections 5 | . 5 Full Trace Events 1 | . 1 Feedback Events . | . . Feedback Blocked . | . . Robot Schematics Acquired . | . . Robots Built . | . . Authchips . | . . Time . | . . Total Robot Build Rating . | . . Part Schematics Acquired 1 | . 1 Parts Built . | . . Authchips . | . . Time . | . . Total Part Build Rating . | . . Parts Repaired . | . . Time . | . . Parts Recycled . | . . Recycled Matter . | . . Retrieved Matter . | . . Retrieved Components 1 | . 1 Parts Scanalyzed . | . . Part Schematics Acquired . | . . Parts Damaged . | . . Bothacking | -11 -10 ------------ Run | Jun Mat Used RIF Installer . | . . Robots Hacked . | . . Non-combat . | . . Combat . | . . Robot Hacks Applied . | . . Relay Couplers Released . | . . Fabnet Peak Effective % . | . . Robots Rewired . | . . Allies Hacked . | . . Hacks Repelled . | . . Allies | -11 -10 -------- Run | Jun Mat Total Allies . | . . Largest Group . | . . Highest-Rated Group . | . . Highest-Rated Ally . | . . Total Orders . | . . Ally Attacks . | . . Total Damage . | . . Kills . | . . Allies Corrupted . | . . Allies Melted . | . . Intel | -11 -10 ------- Run | Jun Mat Robot Analysis Total . | . . Derelict Logs Recovered . | . . Drone Launches . | . . Drone Recoveries . | . . Exploration | -11 -10 ------------- Run | Jun Mat Turns Passed 934 | 82 852 Spaces Moved 402 | 49 353 Core 27 | 27 . Treads . | . . Legs . | . . Wheels 375 | 22 353 Hover . | . . Flight . | . . Fastest Speed 50 | 50 100 Average Speed 121 | 83 126 Slowest Speed 140 | 100 140 Overloaded Moves . | . . Propulsion Burnouts . | . . Robots Hopped . | . . Cave-ins Triggered . | . . Exploration Rate (%) 27 | 3 51 Regions Visited 1 Branch Regions . Pre-discovered Areas . | . . Known Exits Taken . | . . Unknown Exits Taken 1 | 1 . Scrap Searched . | . . Spaces Dug 16 | . 16 Terrain Destroyed 28 | . 28 Melee . | . . Projectile . | . . AOE 28 | . 28 Terrain Rammed . | . . Walls Destroyed . | . . Machines Disabled . | . . Actions | -11 -10 --------- Run | Jun Mat Total 754 | 86 668 Wait 265 | 24 241 Move 401 | 48 353 Hop . | . . Pick Up 13 | 5 8 Fast Attach 4 | 4 . Attach 7 | 2 5 Detach . | . . Swap 9 | 3 6 Drop 2 | . 2 Fire 53 | . 53 Melee . | . . Ram . | . . Kick . | . . Crush . | . . Escape Stasis . | . . Rewire . | . . Trap . | . . Miscellaneous . | . . Route ------- -11/Junkyard -10/Materials (discovered 2 exits: [*Mat] / *Min) History --------- Turn | Location | Event 4 | -11/Junkyard | Discovered new exit (range 15) 83 | -11/Junkyard | Entered Materials 132 | -10/Materials | Identified exit to Mines 316 | -10/Materials | Build established: Mutant 852 | -10/Materials | Discovered new exit (range 9) 885 | -10/Materials | Core integrity fell below 50% 924 | -10/Materials | Core integrity fell below 20% 935 | -10/Materials | Destroyed by exploding Fusion Modulator Last Messages --------------- 00909_ Lgt. Assault Rifle destroyed. 00909_ U-05 Engineer lays Concrete. 00911_ Lgt. Ion Engine destroyed. 00911_ Com. Wheel destroyed. 00911_ U-05 Engineer lays Concrete. 00913_ G-34 Mercenary destroyed. 00913_ Terminal disabled. 00913_ U-05 Engineer lays Concrete. 00916_ G-47 Trooper destroyed. 00916_ U-05 Engineer lays Concrete. 00921_ Assault Rifle destroyed. 00921_ U-05 Engineer lays Concrete. 00925_ U-05 Engineer builds a Wall. 00925_ U-05 Engineer lays Concrete. 00926_ U-05 Engineer builds a Wall. 00926_ U-05 Engineer lays Concrete. 00927_ U-05 Engineer builds a Wall. 00927_ G-47 Trooper destroyed. 00935_ Fusion Modulator explodes. 00935_ U-05 Engineer destroyed. Map ----- +----------------------------------------------------+ | | | | | | | | | | | | | | | | | | | | | | | ?????????????????????????????????????????????????? | | ?????????????????????????????????????????????????? | | ?????????????????????????????????????????????????? | | ?????????????????????????????????????????????????? | | ?????????????????????????????????????????????????? | | ????????????????????????????????????##???????????? | | ????????????????????????????###????""##??????????? | | ????????????????############ ###"|||"#??????????? | | ????????????????#; # "" ""#?????????? | | ?????????????####; " #?????????? | | ?????????????# # > #?????????? | | ?????????????# < ; #?????????? | | ?????????????# # %= # #?????????? | | ?????????????# + %= ## #??????????? | | ?????????????# # = @%! ##????????????????? | | ?????????????# ; = ??????????? | | #####???????## ##;;;#;#;## ????????? | | ########### ##??##???#!! "" ?????????? | | #????????#!! ""???????????? | | #????????#! ""???????????? | | ^ %= #????????# ???????????? | | #########+### ???? u ??????????? | | #### ????## ### ##??? ??????????? | | ???# ???# #??? #????##+## #??????????? | | ???# ?# #???? #?????????##+##???????????? | | ???# ## #???????????????????????????????? | | ???# ## #???????????????????????????????? | | #### + #???????????????????????????????? | | " ## ## #???????????????????????????????? | | " ## ### ##???????????????????????????????? | | ## #?# #????????????????????????????????? | | #########???# #????????????????????????????????? | | ############# #????????????????????????????????? | | / #????????????????????????????????? | | #################????????????????????????????????? | | ?????????????????????????????????????????????????? | | ?????????????????????????????????????????????????? | | ?????????????????????????????????????????????????? | | ############?????????????????????????????????????? | +----------------------------------------------------+ Best States ------------- Heat Dissipation 25 Energy Generation 10 Energy Capacity 250 Matter Stores 300 Matter Capacity 300 Sight Range 16 Terrain Scan Density 10 Evasion (%) 50 Item Schematics ----------------- Huge Storage Unit | -10/Materials | Hacked Robot Schematics ------------------ None Fabricated ------------ Nothing Alien Tech Used ----------------- None Achievements -------------- None Challenges ------------ None Game ------ Seed FocalAblativeMicroactuators Manual? 0 Play Time 00:09:46 Cumulative 30.1 hours Start 2023.06.15 @ 23:38:01 End 2023.06.19 @ 17:24:27 Sessions 3 Manual Loads 0 Difficulty Rogue Special Mode None Game No. 21 Rogue 21 Adventurer 0 Explorer 0 Win Type - Total 0 Types 0/0/0/0/0/0/0/0/0 Lore% 30 Gallery% 32 Achievement% 32 Wizard Run 0 Options --------- ASCII 0 Keyboard 0 Movement Mouse Keybinds 0 Fullscreen 1 Font 24/Smallcaps Map View 76x50 Tactical HUD 1 Map Filters NONE Filters NONE Steam 1 RUN: 42369a5c-36b2-40af-bebb-fcfcdf0355af